bitfinex-derivatives/quotes_SOLF0:USTF0_20250624
["timestamp","ask_amount","ask_price","bid_price","bid_amount"]
[1750728573355,6.935,144.09,144.03,3.46368457]
[1750728574153,6.935,144.09,144.05,6.9365]
[1750728576766,74.6346,144.1,144.02,3.46368457]
[1750728577763,67.7,144.1,144.02,3.46368457]
[1750728577956,67.7,144.1,144.04,3.46368457]
[1750728578355,67.7,144.1,144.07,6.9356]
[1750728578767,74.6345,144.1,144.07,6.9356]
[1750728581570,67.7,144.1,144.07,6.9356]
[1750728581771,67.7,144.1,144.04,3.46368457]
[1750728581966,36.7,144.1,144.04,3.46368457]
[1750728582365,36.7,144.1,144.08,6.935]
[1750728583067,36.7,144.1,144.09,6.935]
[1750728587668,67.68,144.13,144.12,6.9335]
[1750728587870,36.68,144.13,144.12,6.9335]
[1750728589168,36.68,144.13,144.11,6.9338]
[1750728591863,43.613,144.13,144.1,6.9343]
[1750728592260,36.68,144.13,144.08,2.3917]
[1750728592467,6.9338,144.12,144.07,2.3994]
[1750728592671,36.68,144.13,144.08,6.9352]
[1750728593268,6.9338,144.12,144.08,6.9352]
[1750728593970,6.9338,144.12,144.09,6.9349]
[1750728596468,6.9341,144.11,144.07,9.335]
[1750728596669,6.9341,144.11,144.07,2.3994]
[1750728597068,6.9341,144.11,144.08,6.9353]
[1750728597876,36.62,144.14,144.07,5.86308457]
[1750728598370,43.5527,144.14,144.07,5.86308457]
[1750728598575,36.62,144.14,144.09,3.46368457]
[1750728599078,36.62,144.14,144.11,6.9335]
[1750728599677,36.62,144.14,144.12,6.9334]
[1750728600880,43.5526,144.14,144.11,6.9339]
[1750728601276,36.62,144.14,144.09,3.46368457]
[1750728601774,36.62,144.14,144.12,6.9333]
[1750728603874,599.34,144.16,144.11,3.46368457]
[1750728604272,31.0,144.21,144.13,3.46368457]
[1750728604477,36.62,144.2,144.13,3.46368457]
[1750728604975,43.5499,144.2,144.17,6.9311]
[1750728605280,36.62,144.2,144.13,3.46368457]
[1750728605475,6.9302,144.19,144.15,6.9318]
[1750728606183,36.62,144.2,144.15,6.9318]
[1750728607074,39.1856789,144.2,144.15,6.9318]
[1750728607681,6.9307,144.18,144.15,6.9318]
[1750728608581,6.9307,144.18,144.14,6.9324]
[1750728608783,6.9312,144.17,144.12,2.289]
[1750728609180,6.9328,144.14,144.11,3.46368457]
[1750728609480,36.6,144.16,144.09,3.46368457]
[1750728609481,71.06368457,144.16,144.09,3.46368457]
[1750728609683,71.06368457,144.16,144.09,10.39828457]
[1750728609876,6.9333,144.13,144.09,10.39828457]
[1750728610076,71.06368457,144.16,144.09,3.46368457]
[1750728610275,67.6,144.16,144.09,3.46368457]
[1750728610484,36.6,144.16,144.11,3.46368457]
[1750728610679,36.6,144.16,144.13,6.9327]
[1750728611081,36.6,144.16,144.11,3.46368457]
[1750728611784,36.6,144.16,144.14,6.9324]
[1750728611990,43.5314,144.17,144.14,6.9324]
[1750728612586,36.6,144.17,144.15,6.9319]
[1750728614894,36.6,144.17,144.11,5.74868457]
[1750728615396,6.932,144.16,144.12,6.9333]
[1750728615693,39.17127055,144.17,144.12,6.9333]
[1750728615883,36.6,144.17,144.12,6.9333]
[1750728616292,6.9325,144.15,144.11,10.39748457]
[1750728616597,6.9325,144.15,144.11,6.9338]
[1750728616789,6.9325,144.15,144.09,3.46368457]
[1750728617092,6.9318,144.16,144.11,3.46368457]
[1750728617490,6.9318,144.16,144.13,6.9327]
[1750728618088,36.6,144.17,144.12,6.9333]
[1750728618295,6.9321,144.15,144.12,6.9333]
[1750728618894,6.9327,144.14,144.11,10.39758457]
[1750728619096,6.9327,144.14,144.11,6.9339]
[1750728619990,6.9322,144.15,144.11,6.9339]
[1750728620595,6.9322,144.15,144.12,6.9335]
[1750728620900,6.9322,144.15,144.09,3.46368457]
[1750728621400,6.9322,144.15,144.11,6.9338]
[1750728622592,6.9327,144.14,144.11,6.9338]
[1750728624393,6.9323,144.15,144.11,6.9338]
[1750728625799,6.9326,144.14,144.11,6.9338]
[1750728626001,5.24108536,144.15,144.08,2.2444]
[1750728626205,11.73412746,144.14,144.07,2.2056]
[1750728626397,44.87218834,144.13,144.07,2.2056]
[1750728626597,36.6,144.13,144.07,2.2056]
[1750728626805,6.9343,144.11,144.07,9.1413]
[1750728627003,6.9343,144.11,144.07,2.2056]
[1750728627305,6.9337,144.12,144.08,6.9351]
[1750728627798,43.5335,144.13,144.09,6.9346]
[1750728630004,6.9335,144.12,144.09,6.9346]
[1750728632013,43.5332,144.13,144.09,6.9346]
[1750728632306,36.6,144.13,144.08,3.46368457]
[1750728632608,36.6,144.13,144.1,6.9341]
[1750728634007,43.5331,144.13,144.1,6.9341]
[1750728635500,43.5331,144.13,144.09,6.9348]
[1750728637002,6.9336,144.12,144.08,10.39888457]
[1750728638100,6.9336,144.12,144.09,6.9349]
[1750728640010,43.5334,144.13,144.1,6.9343]
[1750728640602,43.5334,144.13,144.09,6.9348]
[1750728641713,43.5334,144.13,144.1,6.9344]
[1750728643415,43.5334,144.13,144.09,6.9348]
[1750728645009,36.6,144.13,144.08,3.46368457]
[1750728645513,36.6,144.13,144.08,5.71368457]
[1750728646217,43.5334,144.13,144.08,5.71368457]
[1750728646615,36.6,144.13,144.08,5.71368457]
[1750728646818,36.6,144.13,144.08,3.46368457]
[1750728647514,3.46368457,144.11,144.04,2.25]
[1750728647711,18.663421,144.1,144.03,3.46368457]
[1750728647911,36.54,144.09,144.03,3.46368457]
[1750728648314,6.9358,144.08,144.04,6.937]
[1750728648516,36.54,144.09,144.03,3.46368457]
[1750728648919,36.54,144.09,144.06,6.9363]
[1750728649414,36.54,144.09,144.06,6.9361]
[1750728649915,36.54,144.09,144.05,3.46368457]
[1750728650223,36.54,144.09,144.06,6.9363]
[1750728650722,36.54,144.09,144.07,6.9358]
[1750728651521,36.54,144.09,144.06,6.9362]
[1750728652618,36.54,144.09,144.05,3.46368457]
[1750728653218,36.54,144.09,144.07,6.9358]
[1750728662018,36.54,144.09,144.08,6.9354]
[1750728664133,36.54,144.09,144.07,6.9357]
[1750728664325,36.54,144.09,144.05,3.46368457]
[1750728665829,22.17803691,144.08,143.98,3.46509724]
[1750728666030,22.17803691,144.08,144.01,6.9384]
[1750728666031,18.71293967,144.07,144.01,6.9384]
[1750728666221,6.937,144.05,144.01,6.9384]
[1750728666426,43.377,144.05,144.01,6.9384]
[1750728667534,6.9374,144.04,144.01,6.9384]
[1750728669536,36.44,144.05,143.98,3.46509724]
[1750728670240,6.9377,144.04,144.0,6.9392]
[1750728670439,39.90837384,144.05,143.98,3.46837384]
[1750728671333,3.46837384,144.03,143.95,3.46837384]
[1750728671933,3.46837384,144.01,143.94,38.8585]
[1750728672137,36.44,144.0,143.94,2.4185]
[1750728672437,3.46837384,143.99,143.91,257.8767438]
[1750728673037,10.40857384,143.99,143.94,6.942]
[1750728673229,10.40857384,143.99,143.91,257.8767438]
[1750728673438,3.46837384,143.99,143.91,257.8767438]
[1750728673742,43.3797,144.0,143.93,3.46837384]
[1750728674141,43.3797,144.0,143.95,6.9416]
[1750728674341,6.9398,143.99,143.95,6.9416]
[1750728674639,36.44,144.0,143.92,8.08837384]
[1750728674835,43.3794,144.0,143.96,6.9408]
[1750728677749,36.44,144.0,143.97,6.9406]
[1750728677942,36.44,144.0,143.94,3.46837384]
[1750728679047,36.44,144.0,143.97,6.9404]
[1750728680751,36.44,144.0,143.98,6.9402]
[1750728683255,36.44,144.0,143.97,6.9406]
[1750728686248,31.0,144.03,143.99,6.9397]
[1750728686450,31.0,144.03,143.98,3.46837384]
[1750728686649,31.0,144.03,144.0,3.46837384]
[1750728686849,31.0,144.03,144.0,10.40717384]
[1750728687045,31.0,144.03,143.98,3.46837384]
[1750728687457,6.9385,144.02,143.98,10.40817384]
[1750728688257,37.938,144.03,143.99,6.9396]
[1750728688858,31.0,144.03,144.0,6.9393]
[1750728690644,31.0,144.03,143.99,6.9396]
[1750728690846,31.0,144.03,143.95,3.46837384]
[1750728691052,34.46837384,144.02,143.95,3.46837384]
[1750728691252,3.46837384,144.0,143.93,2.338]
[1750728691557,36.32,143.99,143.93,2.338]
[1750728691758,43.2601,143.99,143.95,6.9414]
[1750728692461,6.9402,143.98,143.95,6.9414]
[1750728692760,6.9402,143.98,143.94,6.942]
[1750728692959,6.9408,143.97,143.92,5.78547384]
[1750728693259,34.46837384,143.98,143.9,3.46837384]
[1750728693560,3.46837384,143.96,143.9,6.944]
[1750728693862,3.46837384,143.94,143.88,5.88227384]
[1750728694057,36.34,143.93,143.88,5.88227384]
[1750728694259,34.46837384,143.92,143.84,39.80837384]
[1750728694561,31.0,143.91,143.83,5.80817384]
[1750728694856,3.46837384,143.92,143.85,3.46837384]
[1750728695059,38.5813,143.93,143.85,3.46837384]
[1750728695353,3.46837384,143.92,143.85,3.46837384]
[1750728695858,3.46837384,143.88,143.81,4.789]
[1750728696062,36.34,143.87,143.81,4.789]
[1750728696458,36.34,143.87,143.82,6.9479]
[1750728696459,6.9464,143.86,143.82,6.9479]
[1750728696659,36.34,143.87,143.82,6.9479]
[1750728696864,6.9464,143.86,143.81,9.3622]
[1750728697163,6.9464,143.86,143.77,2.4239]
[1750728697164,3.46837384,143.86,143.77,2.4239]
[1750728697551,3.46837384,143.84,143.77,2.4239]
[1750728697862,6.948,143.82,143.78,6.9499]
[1750728699063,43.2875,143.83,143.78,6.9499]
[1750728700362,3.46837384,143.82,143.77,6.9504]
[1750728700857,10.41647384,143.82,143.77,6.9504]
[1750728701159,3.46837384,143.78,143.71,3.46837384]
[1750728701358,39.82837384,143.78,143.71,3.46837384]
[1750728701858,46.77827384,143.78,143.71,3.46837384]
[1750728702058,39.82837384,143.78,143.71,3.46837384]
[1750728703059,39.82837384,143.78,143.74,6.9516]
[1750728704161,36.36,143.78,143.71,3.46837384]
[1750728704365,36.36,143.81,143.75,3.46837384]
[1750728704758,36.36,143.81,143.78,6.9495]
[1750728705462,36.36,143.81,143.77,6.9503]
[1750728706365,43.3086,143.81,143.77,6.9503]
[1750728706560,46.77697384,143.81,143.76,6.9508]
[1750728706961,6.949,143.8,143.75,6.9513]
[1750728707661,6.9496,143.79,143.75,6.9513]
[1750728707966,3.46837384,143.79,143.72,39.82837384]
[1750728708265,3.46837384,143.79,143.73,6.9522]
[1750728708467,3.46837384,143.79,143.72,3.46837384]
[1750728708856,39.82837384,143.81,143.74,3.46837384]
[1750728709355,46.77717384,143.81,143.74,3.46837384]
[1750728709867,46.77717384,143.81,143.76,6.9505]
[1750728711262,39.82837384,143.81,143.74,3.46837384]
[1750728711464,36.38,143.81,143.76,3.46837384]
[1750728712664,36.38,143.81,143.78,6.9495]
[1750728713060,36.38,143.81,143.76,3.46837384]
[1750728713967,36.38,143.81,143.8,6.9489]
[1750728714169,36.38,143.81,143.76,3.46837384]
[1750728714369,36.38,143.81,143.79,6.9493]
[1750728715358,36.38,143.81,143.76,3.46837384]
[1750728715861,36.38,143.81,143.79,6.9491]
[1750728716465,36.38,143.81,143.8,6.9489]
[1750728719072,36.38,143.81,143.79,6.9493]
[1750728720973,36.38,143.81,143.76,3.46837384]
[1750728721172,39.84837384,143.81,143.75,2.2326]
[1750728721364,39.84837384,143.81,143.74,3.46837384]
[1750728721365,39.84837384,143.81,143.73,36.38]
[1750728721561,6.9499,143.78,143.74,6.9517]
[1750728721960,3.46837384,143.79,143.72,3.46837384]
[1750728722166,10.41807384,143.79,143.75,6.9513]
[1750728722370,3.46837384,143.79,143.72,3.46837384]
[1750728722972,6.9502,143.78,143.74,6.9515]
[1750728723171,6.9502,143.78,143.72,3.46837384]
[1750728723578,10.41797384,143.79,143.75,6.9513]
[1750728724170,6.95,143.78,143.75,6.9513]
[1750728724874,10.41797384,143.79,143.75,6.9513]
[1750728726880,3.46837384,143.79,143.74,6.9518]
[1750728727183,3.46837384,143.79,143.72,3.46837384]
[1750728727584,6.9501,143.78,143.74,6.9518]
[1750728727882,6.9501,143.78,143.72,3.46837384]
[1750728728782,6.9507,143.77,143.7,36.26]
[1750728728982,39.74837384,143.77,143.71,3.46837384]
[1750728729176,39.74837384,143.77,143.7,36.26]
[1750728729482,6.9516,143.75,143.71,6.9528]
[1750728729680,39.74837384,143.77,143.69,10.52207384]
[1750728730277,6.951,143.76,143.72,6.9525]
[1750728730584,39.74837384,143.77,143.69,7.0537]
[1750728730885,39.74837384,143.77,143.69,10.52207384]
[1750728731474,6.9511,143.76,143.72,6.9525]
[1750728732781,39.74837384,143.77,143.69,10.52207384]
[1750728732782,6.9515,143.75,143.71,6.9531]
[1750728733083,36.28,143.77,143.69,10.52207384]
[1750728734182,43.2307,143.77,143.73,6.952]
[1750728735377,43.2307,143.77,143.74,6.9518]
[1750728735776,43.2307,143.77,143.69,10.52207384]
[1750728735986,43.2307,143.77,143.73,6.952]
[1750728736869,6.9509,143.76,143.73,6.952]
[1750728738181,6.9509,143.76,143.69,10.52207384]
[1750728738182,5.18168688,143.75,143.72,6.9526]
[1750728738381,6.9509,143.76,143.69,4.6995]
[1750728738382,3.46837384,143.76,143.69,4.6995]
[1750728738686,5.18099452,143.75,143.72,6.9526]
[1750728738880,3.46837384,143.76,143.69,4.6995]
[1750728739080,5.18094045,143.75,143.69,4.6995]
[1750728739277,6.9516,143.75,143.71,6.9529]
[1750728739474,3.46837384,143.76,143.71,6.9529]
[1750728739675,10.73489265,143.75,143.71,6.9529]
[1750728739875,6.9519,143.74,143.71,6.9529]
[1750728740075,3.46837384,143.76,143.71,6.9529]
[1750728740286,18.37028022,143.75,143.71,6.9529]
[1750728740486,10.25328335,143.74,143.71,6.9529]
[1750728740787,6.9517,143.75,143.71,6.9529]
[1750728741085,15.81139854,143.74,143.71,6.9529]
[1750728741282,6.9517,143.75,143.71,6.9529]
[1750728741484,15.80975454,143.74,143.71,6.9529]
[1750728741784,6.9517,143.75,143.71,6.9529]
[1750728741984,15.8112783,143.74,143.71,6.9529]
[1750728742178,6.9517,143.75,143.71,6.9529]
[1750728742380,15.8112783,143.74,143.71,6.9529]
[1750728742581,42.70856,143.77,143.72,6.9527]
[1750728742885,21.83944709,143.76,143.72,6.9527]
[1750728743079,18.37107325,143.75,143.72,6.9527]
[1750728743279,5.19214848,143.74,143.72,6.9527]
[1750728743474,6.9517,143.75,143.72,6.9527]
[1750728743681,5.1910532,143.74,143.72,6.9527]
[1750728743890,6.9517,143.75,143.72,6.9527]
[1750728744078,5.19192269,143.74,143.72,6.9527]
[1750728744398,6.9517,143.75,143.72,6.9527]
[1750728744583,10.2511464,143.74,143.72,6.9527]
[1750728744887,6.9517,143.75,143.72,6.9527]
[1750728745087,15.81632405,143.74,143.7,6.9535]
[1750728745287,6.9517,143.75,143.7,6.9535]
[1750728745488,15.82060763,143.74,143.7,6.9535]
[1750728745786,6.9517,143.75,143.7,6.9535]
[1750728745986,15.81873873,143.74,143.7,6.9535]
[1750728746189,6.9517,143.75,143.71,6.9533]
[1750728746383,15.81998052,143.74,143.69,4.6995]
[1750728746585,6.9519,143.74,143.69,4.6995]
[1750728747090,6.9523,143.73,143.7,6.9535]
[1750728747490,6.9523,143.73,143.69,4.6995]
[1750728747701,6.9523,143.73,143.69,11.6536]
[1750728747988,6.9529,143.72,143.69,2.3415]
[1750728748383,6.9538,143.7,143.66,338.58304384]
[1750728749690,6.9534,143.71,143.67,6.9549]
[1750728749891,36.28,143.73,143.68,3.46837384]
[1750728750395,6.9528,143.72,143.68,10.42267384]
[1750728750588,6.9528,143.72,143.68,3.46837384]
[1750728750788,43.2325,143.73,143.69,6.9541]
[1750728752493,36.28,143.73,143.7,6.9537]
[1750728752997,43.2324,143.73,143.69,6.954]
[1750728753489,43.2324,143.73,143.68,3.46837384]
[1750728754593,34.46837384,143.79,143.72,3.46837384]
[1750728754891,36.18,143.78,143.72,3.46837384]
[1750728755099,6.9509,143.76,143.71,3.46837384]
[1750728755595,36.18,143.78,143.71,3.46837384]
[1750728755795,36.18,143.78,143.73,3.46837384]
[1750728756301,36.18,143.78,143.75,6.9511]
[1750728756989,43.13,143.78,143.75,6.9511]
[1750728757190,36.18,143.78,143.72,3.46837384]
[1750728757592,36.18,143.78,143.74,6.9514]
[1750728758300,36.18,143.78,143.75,6.9511]
[1750728760403,43.13,143.78,143.75,6.9511]
[1750728760700,43.13,143.78,143.74,6.9517]
[1750728762404,43.13,143.78,143.75,6.9512]
[1750728763900,6.9506,143.77,143.72,3.46837384]
[1750728764109,36.18,143.78,143.72,3.46837384]
[1750728764302,36.18,143.78,143.71,2.3093]
[1750728764303,2.5696197,143.77,143.71,2.3093]
[1750728764606,3.46837384,143.77,143.7,3.46837384]
[1750728764908,3.46837384,143.77,143.69,38.4929]
[1750728764909,8.16297718,143.76,143.69,38.4929]
[1750728765202,3.46837384,143.77,143.71,6.9528]
[1750728765398,3.46837384,143.75,143.69,38.4929]
[1750728765592,36.18,143.74,143.69,6.954]
[1750728765797,36.18,143.74,143.67,3.46837384]
[1750728765998,3.46837384,143.73,143.67,3.46837384]
[1750728766194,6.9531,143.72,143.68,6.9545]
[1750728766394,3.46837384,143.73,143.68,6.9545]
[1750728766600,6.954,143.7,143.67,6.9551]
[1750728766915,6.954,143.7,143.66,335.11467]
[1750728767309,6.954,143.7,143.66,342.07017]
[1750728768817,6.9535,143.71,143.66,335.11467]
[1750728769014,3.46837384,143.73,143.66,338.58304384]
[1750728769519,6.9529,143.72,143.68,6.9544]
[1750728770716,3.46837384,143.73,143.67,6.9552]
[1750728771218,6.9539,143.7,143.67,6.9552]
[1750728771917,6.9539,143.7,143.66,335.11467]
[1750728771918,6.9539,143.7,143.66,342.07017]
[1750728772120,6.9543,143.69,143.66,342.07017]
[1750728772421,6.9543,143.69,143.65,9.1621]
[1750728772813,6.9539,143.7,143.65,2.2061]
[1750728773019,36.18,143.7,143.67,6.9552]
[1750728774214,36.18,143.7,143.68,6.9547]
[1750728774611,36.18,143.7,143.65,5.67447384]
[1750728774822,36.18,143.7,143.68,6.9545]
[1750728775916,36.18,143.7,143.69,6.9543]
[1750728776224,3.46837384,143.73,143.69,6.9543]
[1750728776521,36.18,143.73,143.71,6.953]
[1750728779023,36.18,143.73,143.72,6.9528]
[1750728779219,36.18,143.73,143.69,3.46837384]
[1750728779628,36.18,143.73,143.7,6.9537]
[1750728780721,36.18,143.73,143.69,6.9541]
[1750728781424,36.18,143.73,143.66,5.77047384]
[1750728781425,36.18,143.73,143.7,6.9537]
[1750728781726,36.18,143.73,143.68,3.46837384]
[1750728782728,36.18,143.73,143.71,6.9532]
[1750728783330,36.18,143.73,143.68,3.46837384]
[1750728783931,36.18,143.73,143.71,6.953]
[1750728784534,36.18,143.73,143.7,6.9537]
[1750728785435,36.18,143.73,143.69,6.954]
[1750728786039,36.18,143.73,143.66,5.77047384]
[1750728786630,6.953,143.72,143.68,6.9544]
[1750728786829,36.18,143.73,143.68,6.9544]
[1750728787733,6.9533,143.71,143.68,6.9544]
[1750728788540,6.953,143.72,143.68,6.9544]
[1750728790334,6.9534,143.71,143.68,6.9544]
[1750728791239,6.953,143.72,143.68,6.9544]
[1750728791442,36.18,143.73,143.69,6.9538]
[1750728792645,6.9531,143.72,143.68,6.9545]
[1750728792945,36.18,143.73,143.68,6.9545]
[1750728793346,3.46837384,143.72,143.67,6.9552]
[1750728793748,6.9539,143.7,143.67,6.9552]
[1750728794546,6.9535,143.71,143.67,6.9552]
[1750728796447,6.9535,143.71,143.68,6.9547]
[1750728796748,6.9535,143.71,143.65,2.2061]
[1750728797045,6.9535,143.71,143.67,6.955]
[1750728798652,10.42137384,143.72,143.68,6.9547]
[1750728798845,3.46837384,143.72,143.68,6.9547]
[1750728799242,6.9536,143.71,143.67,6.9551]
[1750728799452,6.9536,143.71,143.65,2.2061]
[1750728799751,6.9536,143.71,143.68,6.9546]
[1750728800050,10.42137384,143.72,143.68,6.9546]
[1750728801149,6.9534,143.71,143.68,6.9546]
[1750728801451,6.9534,143.71,143.65,2.2061]
[1750728801854,6.9542,143.7,143.65,2.2061]
[1750728803645,6.9542,143.7,143.67,6.9552]
[1750728804254,6.9542,143.7,143.66,6.9556]
[1750728804551,3.46837384,143.72,143.65,2.2061]
[1750728805049,8.12425797,143.71,143.63,2.4137]
[1750728805351,6.03866433,143.7,143.63,2.4137]
[1750728805557,36.1,143.69,143.63,2.4137]
[1750728805750,10.23702601,143.71,143.64,3.46837384]
[1750728805953,2.2312,143.74,143.67,3.46837384]
[1750728806155,6.9522,143.74,143.69,6.954]
[1750728806655,36.1,143.75,143.72,6.9525]
[1750728806848,8.12674941,143.74,143.69,3.46837384]
[1750728807048,36.1,143.75,143.69,3.46837384]
[1750728807247,8.12677053,143.74,143.69,3.46837384]
[1750728807456,36.1,143.75,143.71,6.9528]
[1750728807654,36.1,143.75,143.69,3.46837384]
[1750728807655,8.13163981,143.74,143.69,3.46837384]
[1750728807956,36.1,143.75,143.69,3.46837384]
[1750728808163,8.1316964,143.74,143.69,3.46837384]
[1750728808358,36.1,143.75,143.69,3.46837384]
[1750728808563,8.13475534,143.74,143.69,3.46837384]
[1750728808749,43.0514,143.75,143.69,3.46837384]
[1750728808951,8.13474568,143.74,143.72,6.9528]
[1750728809148,36.1,143.75,143.72,6.9528]
[1750728809356,8.13480973,143.74,143.72,6.9528]
[1750728809556,36.1,143.75,143.72,6.9528]
[1750728809856,2.57270489,143.74,143.72,6.9528]
[1750728810059,36.1,143.75,143.72,6.9528]
[1750728810257,36.1,143.75,143.73,6.9523]
[1750728810457,10.2469375,143.77,143.71,3.46837384]
[1750728810660,2.57201721,143.76,143.71,3.46837384]
[1750728810960,36.0,143.78,143.73,3.46837384]
[1750728811151,8.14875797,143.77,143.73,3.46837384]
[1750728811360,36.0,143.78,143.75,6.9509]
[1750728811655,2.56955743,143.77,143.73,3.46837384]
[1750728811854,36.0,143.78,143.73,3.46837384]
[1750728812057,8.14409026,143.77,143.73,3.46837384]
[1750728812255,36.0,143.78,143.73,3.46837384]
[1750728812655,36.0,143.78,143.75,6.9512]
[1750728815163,36.0,143.78,143.76,6.9508]
[1750728817463,36.0,143.78,143.73,3.46837384]
[1750728817464,36.0,143.78,143.77,6.9504]
[1750728817969,42.9486,143.81,143.77,6.9504]
[1750728818154,42.9486,143.81,143.69,48.81530662]
[1750728818155,6.949,143.8,143.76,6.9507]
[1750728818360,6.949,143.8,143.75,3.46837384]
[1750728818868,42.9486,143.81,143.77,6.9504]
[1750728819068,36.0,143.81,143.75,3.46837384]
[1750728819271,42.9485,143.81,143.77,6.9502]
[1750728819964,6.9485,143.81,143.77,6.9502]
[1750728820165,42.9285,143.81,143.77,6.9502]
[1750728821663,42.9285,143.81,143.78,6.9499]
[1750728821969,42.9285,143.81,143.74,6.9008]
[1750728822172,6.949,143.8,143.75,3.46837384]
[1750728823670,6.949,143.8,143.77,6.9503]
[1750728824567,6.9494,143.79,143.75,3.46837384]
[1750728824758,3.46837384,143.78,143.71,3.46837384]
[1750728824958,35.98,143.77,143.69,5.67587384]
[1750728825161,35.98,143.77,143.69,2.2075]
[1750728825473,3.46837384,143.74,143.66,3.46837384]
[1750728825774,6.9532,143.72,143.68,6.9544]
[1750728826066,35.98,143.73,143.68,6.9544]
[1750728826262,35.98,143.73,143.66,3.46837384]
[1750728826263,6.9537,143.71,143.67,6.9552]
[1750728826468,3.46837384,143.72,143.64,3.46837384]
[1750728826873,6.9538,143.7,143.64,3.46837384]
[1750728827068,3.46837384,143.72,143.64,3.46837384]
[1750728828067,35.98,143.73,143.63,4.5917]
[1750728828068,42.9324,143.73,143.63,4.5917]
[1750728828374,42.9324,143.73,143.65,3.46837384]
[1750728828375,46.40077384,143.73,143.65,3.46837384]
[1750728828577,6.9529,143.72,143.63,4.5917]
[1750728828771,6.9529,143.72,143.65,3.46837384]
[1750728830167,42.9324,143.73,143.65,3.46837384]
[1750728830371,46.40077384,143.73,143.65,3.46837384]
[1750728831384,46.40077384,143.73,143.68,6.9543]
[1750728831877,6.9535,143.71,143.67,6.9551]
[1750728832084,3.46837384,143.71,143.64,3.46837384]
[1750728834582,10.42167384,143.71,143.64,3.46837384]
[1750728834781,35.98,143.73,143.64,3.46837384]
[1750728835082,39.44837384,143.73,143.64,3.46837384]
[1750728835282,35.98,143.73,143.72,6.9528]
[1750728837490,36.0,143.75,143.73,6.9519]
[1750728842979,36.0,143.75,143.74,6.9518]
[1750728844087,36.0,143.75,143.73,6.9522]
[1750728846890,36.0,143.75,143.74,6.9518]
[1750728852196,36.0,143.75,143.73,6.9522]
[1750728852394,36.0,143.75,143.69,8.20137384]
[1750728852695,36.0,143.75,143.72,6.9526]
[1750728853388,36.0,143.75,143.73,6.9523]
[1750728853588,36.0,143.75,143.69,8.20137384]
[1750728854086,36.0,143.75,143.72,6.9528]
[1750728857697,36.0,143.75,143.73,6.9523]
[1750728859290,36.0,143.75,143.72,6.9526]
[1750728859797,36.0,143.75,143.73,6.9523]
[1750728869704,36.0,143.75,143.72,6.9526]
[1750728869904,6.9521,143.74,143.69,4.733]
[1750728870100,6.9521,143.74,143.69,2.3609]
[1750728870301,2.22910981,143.73,143.7,6.9535]
[1750728871598,36.0,143.75,143.7,6.9535]
[1750728871599,6.952,143.74,143.7,6.9535]
[1750728871903,36.0,143.75,143.71,6.9532]
[1750728871904,2.22910981,143.73,143.71,6.9532]
[1750728872103,9.18100981,143.74,143.71,6.9532]
[1750728872305,9.18100981,143.74,143.7,6.9536]
[1750728872306,6.9519,143.74,143.7,6.9536]
[1750728872598,9.53028237,143.73,143.7,6.9536]
[1750728872798,6.9524,143.73,143.7,6.9536]
[1750728874909,6.9529,143.72,143.69,6.9541]
[1750728875207,35.9,143.71,143.66,3.48277579]
[1750728875403,42.8533,143.71,143.68,6.9543]
[1750728875605,35.9,143.71,143.66,3.48277579]
[1750728877512,35.9,143.71,143.68,6.9544]
[1750728878606,42.8534,143.71,143.68,6.9544]
[1750728878809,35.9,143.71,143.65,2.4117]
[1750728879009,2.57988347,143.7,143.65,2.4117]
[1750728879310,39.38277579,143.71,143.65,2.4117]